bitfinex-derivatives/quotes_BTCF0:USTF0_20230901
["timestamp","ask_amount","ask_price","bid_price","bid_amount"]
[1693565231396,0.4233,26009.0,26008.0,1.15145745]
[1693565232801,0.34635453,26009.0,26008.0,1.55978319]
[1693565235913,0.25017238,26009.0,26008.0,1.55978319]
[1693565236812,0.25017238,26009.0,26008.0,1.40595461]
[1693565238613,0.39439638,26009.0,26008.0,1.40595461]
[1693565240115,0.39439638,26009.0,26008.0,1.59834942]
[1693565240317,0.68669638,26009.0,26008.0,1.54180104]
[1693565240519,1.024049,26009.0,26008.0,0.59972323]
[1693565240816,1.024049,26009.0,26008.0,0.45549323]
[1693565241009,1.004049,26009.0,26008.0,0.45549323]
[1693565241210,1.024049,26009.0,26008.0,0.45549323]
[1693565243712,1.004049,26009.0,26008.0,0.45549323]
[1693565243918,1.024049,26009.0,26008.0,0.45549323]
[1693565246924,1.024049,26009.0,26008.0,0.30249716]
[1693565247128,0.96633532,26009.0,26008.0,0.30249716]
[1693565251030,1.01436948,26009.0,26008.0,0.30249716]
[1693565252931,0.93741732,26009.0,26008.0,0.30249716]
[1693565253131,0.93741732,26009.0,26008.0,0.49489197]
[1693565255029,0.93741732,26009.0,26008.0,0.30249716]
[1693565255334,0.93741732,26009.0,26008.0,0.49489197]
[1693565256040,0.91741732,26009.0,26008.0,0.30249716]
[1693565256229,0.93741732,26009.0,26008.0,0.49489197]
[1693565256536,0.93741732,26009.0,26008.0,0.30249716]
[1693565256926,0.91741732,26009.0,26008.0,0.30249716]
[1693565257234,0.91741732,26009.0,26008.0,0.49489197]
[1693565257633,0.91741732,26009.0,26008.0,0.44689197]
[1693565257928,0.92525732,26009.0,26008.0,0.47789197]
[1693565258635,0.92325732,26009.0,26008.0,0.45389197]
[1693565261440,0.97128853,26009.0,26008.0,0.50858104]
[1693565261939,0.97128853,26009.0,26008.0,0.45389197]
[1693565262133,0.97128853,26009.0,26008.0,0.26149716]
[1693565263638,0.97128853,26009.0,26008.0,0.40572816]
[1693565264538,0.97128853,26009.0,26008.0,0.26149716]
[1693565266241,0.97128853,26009.0,26008.0,0.41511826]
[1693565266636,0.97128853,26009.0,26008.0,0.55934926]
[1693565268343,0.97128853,26009.0,26008.0,0.151231]
[1693565268543,0.97128853,26009.0,26008.0,0.3048521]
[1693565268844,0.97128853,26009.0,26008.0,0.151231]
[1693565269837,0.97128853,26009.0,26008.0,0.3048521]
[1693565270347,0.97128853,26009.0,26008.0,0.26651688]
[1693565270938,0.97128853,26009.0,26008.0,0.151231]
[1693565271139,0.97128853,26009.0,26008.0,0.26655997]
[1693565271949,0.97128853,26009.0,26008.0,0.42515997]
[1693565272149,0.97128853,26009.0,26008.0,0.309831]
[1693565272742,0.97128853,26009.0,26008.0,0.454062]
[1693565273242,0.97128853,26009.0,26008.0,0.53094732]
[1693565276354,0.97128853,26009.0,26008.0,0.454062]
[1693565285862,0.97128853,26009.0,26008.0,0.53094732]
[1693565292455,0.97128853,26009.0,26008.0,0.454062]
[1693565292656,0.97128853,26009.0,26008.0,0.309831]
[1693565295768,0.97128853,26009.0,26008.0,0.725131]
[1693565297169,0.55598853,26009.0,26008.0,0.725131]
[1693565299471,0.55598853,26009.0,26008.0,0.80201632]
[1693565304668,0.55598853,26009.0,26008.0,0.49918532]
[1693565304874,0.99128853,26009.0,26006.0,0.07688532]
[1693565305073,0.4153,26007.0,26006.0,0.07078729]
[1693565305273,1.16506854,26007.0,26006.0,0.05836212]
[1693565305573,1.18506854,26007.0,26003.0,0.28172023]
[1693565305772,0.4153,26004.0,26003.0,0.28172023]
[1693565305972,0.992312,26004.0,26003.0,0.28172023]
[1693565306768,0.992312,26004.0,26003.0,0.1903]
[1693565306974,0.996312,26004.0,26003.0,0.2113]
[1693565308867,1.000312,26004.0,26003.0,0.2113]
[1693565312868,1.000312,26004.0,26003.0,0.045]
[1693565317281,1.03102419,26004.0,26003.0,0.045]
[1693565317575,1.03102419,26004.0,26001.0,0.153]
[1693565317783,0.4153,26002.0,26001.0,0.153]
[1693565318079,0.99236,26002.0,26001.0,0.153]
[1693565319180,0.99236,26002.0,26001.0,0.155]
[1693565319377,0.99636,26002.0,26001.0,0.155]
[1693565320075,1.00036,26002.0,26001.0,0.155]
[1693565321280,0.99936,26002.0,26001.0,0.155]
[1693565321780,1.00136,26002.0,26001.0,0.156]
[1693565321981,0.99836,26002.0,26001.0,0.154]
[1693565322182,1.00136,26002.0,26001.0,0.155]
[1693565322375,1.01436,26002.0,26001.0,0.154]
[1693565322775,1.02736,26002.0,26001.0,0.153]
[1693565324785,1.02736,26002.0,26001.0,0.29727]
[1693565327385,0.883095,26002.0,26001.0,0.58581]
[1693565327684,0.73883,26002.0,26001.0,1.14538]
[1693565327986,0.73883,26002.0,26001.0,1.16538]
[1693565328286,0.73883,26002.0,26001.0,1.27661745]
[1693565328581,0.035,26002.0,26001.0,1.27661745]
[1693565328778,0.035,26002.0,26001.0,1.39203768]
[1693565328983,0.03128908,26004.0,26002.0,0.02271848]
[1693565329183,0.03128908,26004.0,26003.0,1.10357345]
[1693565329378,0.03128908,26004.0,26003.0,1.12357345]
[1693565329584,0.00057689,26004.0,26003.0,1.12742345]
[1693565330483,0.00057689,26004.0,26003.0,1.12357345]
[1693565330878,0.00057689,26004.0,26003.0,1.12742345]
[1693565331083,0.00057689,26004.0,26003.0,1.12357345]
[1693565331686,0.02857689,26004.0,26003.0,1.12357345]
[1693565331878,0.02857689,26004.0,26003.0,1.12557345]
[1693565331879,0.06457689,26004.0,26003.0,1.12557345]
[1693565332379,0.07257689,26004.0,26003.0,1.13142345]
[1693565332580,0.07257689,26004.0,26003.0,1.12757345]
[1693565332778,0.07257689,26004.0,26003.0,1.12942345]
[1693565332779,0.03657689,26004.0,26003.0,1.12942345]
[1693565332982,0.04057689,26004.0,26003.0,1.14542345]
[1693565333180,0.00857689,26004.0,26003.0,1.16242345]
[1693565333583,0.15282889,26004.0,26003.0,1.16242345]
[1693565333887,0.15282889,26004.0,26003.0,1.15857345]
[1693565334289,0.15282889,26004.0,26003.0,1.16242345]
[1693565334587,0.15282889,26004.0,26003.0,1.15857345]
[1693565336185,0.15282889,26004.0,26003.0,1.16142345]
[1693565336386,0.15282889,26004.0,26003.0,1.15757345]
[1693565336986,0.15282889,26004.0,26003.0,1.16142345]
[1693565337175,0.15282889,26004.0,26003.0,1.14142345]
[1693565337380,0.15282889,26004.0,26003.0,1.15757345]
[1693565337680,0.15282889,26004.0,26003.0,1.14142345]
[1693565338082,0.15282889,26004.0,26003.0,1.13757345]
[1693565338287,0.15282889,26004.0,26003.0,1.15757345]
[1693565338480,0.15282889,26004.0,26003.0,1.16142345]
[1693565338789,0.15282889,26004.0,26003.0,1.15757345]
[1693565339190,0.15282889,26004.0,26003.0,1.16142345]
[1693565339681,0.15282889,26004.0,26003.0,1.15757345]
[1693565339881,0.15282889,26004.0,26003.0,1.16142345]
[1693565340490,0.15282889,26004.0,26003.0,1.14142345]
[1693565340691,0.15282889,26004.0,26003.0,1.16142345]
[1693565340897,0.15282889,26004.0,26003.0,1.14142345]
[1693565341389,0.15282889,26004.0,26003.0,1.16142345]
[1693565341591,0.00857689,26004.0,26003.0,1.14142345]
[1693565343892,0.99230446,26010.0,26004.0,0.11123745]
[1693565344187,0.288447,26010.0,26009.0,0.851828]
[1693565344393,0.288447,26010.0,26009.0,0.96306545]
[1693565344581,0.288447,26010.0,26009.0,1.10729145]
[1693565344992,0.291447,26010.0,26009.0,1.10729145]
[1693565345389,0.294447,26010.0,26009.0,1.10729145]
[1693565345592,0.291447,26010.0,26009.0,1.10729145]
[1693565345885,0.327447,26010.0,26009.0,1.10929145]
[1693565346090,0.360447,26010.0,26009.0,1.11129145]
[1693565346290,0.47267,26010.0,26009.0,1.07274307]
[1693565346594,1.052193,26010.0,26009.0,0.170076]
[1693565347692,1.019193,26010.0,26009.0,0.04485]
[1693565347894,1.018193,26010.0,26009.0,0.189076]
[1693565349488,1.018193,26010.0,26009.0,0.333302]
[1693565350295,1.018193,26010.0,26009.0,0.189076]
[1693565352595,1.022033,26010.0,26009.0,0.189076]
[1693565353395,1.022033,26010.0,26009.0,0.041]
[1693565354697,1.022033,26010.0,26009.0,0.185227]
[1693565354898,1.022033,26010.0,26009.0,0.041]
[1693565356698,1.002033,26010.0,26009.0,0.041]
[1693565356897,1.022033,26010.0,26009.0,0.041]
[1693565358101,1.002033,26010.0,26009.0,0.041]
[1693565358402,1.022033,26010.0,26009.0,0.01037032]
[1693565364301,1.417333,26010.0,26009.0,0.01037032]
[1693565364504,1.437333,26010.0,26009.0,0.01037032]
[1693565373907,1.417333,26010.0,26009.0,0.01037032]
[1693565374107,1.437333,26010.0,26009.0,0.01037032]
[1693565374413,1.417333,26010.0,26009.0,0.01037032]
[1693565374609,1.437333,26010.0,26009.0,0.01037032]
[1693565374814,1.417333,26010.0,26009.0,0.01037032]
[1693565379622,1.417333,26010.0,26009.0,0.01421032]
[1693565384727,1.413493,26010.0,26009.0,0.01421032]
[1693565387034,0.998193,26010.0,26009.0,0.01421032]
[1693565402847,0.998193,26010.0,26009.0,0.01037032]
[1693565403146,0.998193,26010.0,26009.0,0.01421032]
[1693565405542,0.998193,26010.0,26009.0,0.42951032]
[1693565405744,0.998193,26010.0,26009.0,0.44951032]
[1693565405946,0.998193,26010.0,26009.0,0.60751032]
[1693565406142,0.853969,26010.0,26009.0,0.89596032]
[1693565406349,0.438669,26010.0,26009.0,1.15142277]
[1693565408150,0.438669,26010.0,26009.0,1.14758277]
[1693565408350,0.438669,26010.0,26009.0,0.9486687]
[1693565408552,0.582892,26010.0,26009.0,0.9486687]
[1693565408750,0.582892,26010.0,26009.0,0.9525087]
[1693565408951,0.582892,26010.0,26009.0,1.00719777]
[1693565409144,0.582892,26010.0,26009.0,0.73173532]
[1693565409345,0.582892,26010.0,26009.0,0.75173532]
[1693565409654,0.582892,26010.0,26009.0,0.80642439]
[1693565409854,0.582892,26010.0,26009.0,0.78642439]
[1693565410153,0.582892,26010.0,26009.0,0.80642439]
[1693565410352,0.582892,26010.0,26009.0,0.86297277]
[1693565410754,0.582892,26010.0,26009.0,0.8082837]
[1693565410948,0.582892,26010.0,26009.0,0.9525087]
[1693565411453,0.582892,26010.0,26009.0,0.89596032]
[1693565412855,0.582892,26010.0,26009.0,0.9525087]
[1693565413154,0.582892,26010.0,26009.0,1.00719777]
[1693565413454,0.582892,26010.0,26009.0,0.9325087]
[1693565413855,0.582892,26010.0,26009.0,0.87596032]
[1693565414754,0.582892,26010.0,26009.0,0.87212032]
[1693565415053,0.582892,26010.0,26009.0,0.98335777]
[1693565415456,0.582892,26010.0,26009.0,0.9286687]
[1693565415657,0.582892,26010.0,26009.0,0.87596032]
[1693565417050,0.582892,26010.0,26009.0,0.73173532]
[1693565420260,0.582892,26010.0,26009.0,0.58751032]
[1693565422360,0.582892,26010.0,26009.0,0.58367032]
[1693565425764,0.582892,26010.0,26009.0,0.58751032]
[1693565426061,0.602892,26010.0,26009.0,0.58367032]
[1693565426463,0.602892,26010.0,26009.0,0.58751032]
[1693565427465,0.606732,26010.0,26009.0,0.58751032]
[1693565429462,0.606732,26010.0,26009.0,0.58367032]
[1693565430469,0.606732,26010.0,26009.0,0.58751032]
[1693565431465,1.022032,26010.0,26009.0,0.16837032]
[1693565432066,1.002032,26010.0,26009.0,0.16837032]
[1693565432262,1.022032,26010.0,26009.0,0.16837032]
[1693565436987,1.022032,26010.0,26009.0,0.58367032]
[1693565442990,1.002032,26010.0,26009.0,0.58367032]
[1693565443191,1.022032,26010.0,26009.0,0.58367032]
[1693565443688,1.002032,26010.0,26009.0,0.58367032]
[1693565444885,1.002032,26010.0,26009.0,0.56811484]
[1693565446589,1.002032,26010.0,26009.0,0.57196484]
[1693565452294,0.998192,26010.0,26009.0,0.57196484]
[1693565456992,0.998192,26010.0,26009.0,0.15666484]
[1693565467803,0.006,26010.0,26009.0,1.33698904]
[1693565468007,0.006,26010.0,26009.0,1.35698904]
[1693565468214,0.15022,26010.0,26009.0,1.35698904]
[1693565468806,0.15022,26010.0,26009.0,1.28010229]
[1693565469106,0.29444,26010.0,26009.0,1.28010229]
[1693565469306,0.29444,26010.0,26009.0,1.35702363]
[1693565470607,0.29444,26010.0,26009.0,1.39546369]
[1693565470809,0.29444,26010.0,26009.0,1.39161369]
[1693565472805,0.29444,26010.0,26009.0,1.35699182]
[1693565474005,0.43866,26010.0,26009.0,1.21276682]
[1693565474206,0.43866,26010.0,26009.0,1.02078984]
[1693565474394,0.58288,26010.0,26009.0,0.88040484]
[1693565474906,0.58288,26010.0,26009.0,0.87656484]
[1693565475303,0.58288,26010.0,26009.0,0.88040484]
[1693565475704,0.58288,26010.0,26009.0,0.73617984]
[1693565475901,0.99818,26010.0,26009.0,0.73617984]
[1693565476103,0.99718,26010.0,26009.0,0.73617984]
[1693565476309,0.99618,26010.0,26009.0,0.73617984]
[1693565476707,1.01018,26010.0,26009.0,0.71617984]
[1693565477098,1.02618,26010.0,26009.0,0.71617984]
[1693565479103,1.03918,26010.0,26009.0,0.71617984]
[1693565479303,1.05218,26010.0,26009.0,0.71617984]
[1693565479612,1.05218,26010.0,26009.0,0.86040484]
[1693565484614,1.05218,26010.0,26009.0,0.71617984]
[1693565487015,1.05718,26010.0,26009.0,0.71617984]
[1693565487210,1.06418,26010.0,26009.0,0.71617984]
[1693565487615,1.06418,26010.0,26009.0,0.86040484]
[1693565490416,1.06418,26010.0,26009.0,0.97164229]
[1693565490916,1.06418,26010.0,26009.0,0.91695322]
[1693565491519,1.06418,26010.0,26009.0,0.91311322]
[1693565492019,1.06418,26010.0,26009.0,0.85656484]
[1693565494017,1.06418,26010.0,26009.0,0.86040484]
[1693565496528,1.06418,26010.0,26009.0,0.91509391]
[1693565496823,1.06418,26010.0,26009.0,0.86040484]
[1693565497021,0.64888,26010.0,26009.0,0.86040484]
[1693565503224,0.64888,26010.0,26009.0,0.93730437]
[1693565507024,1.06418,26010.0,26009.0,0.93730437]
[1693565510224,1.06418,26010.0,26009.0,0.85656484]
[1693565511929,1.06418,26010.0,26009.0,0.56725057]
[1693565511930,1.06802,26010.0,26009.0,0.56725057]
[1693565512120,1.06802,26010.0,26009.0,0.14425812]
[1693565512315,0.00384,26009.0,26008.0,0.28597757]
[1693565512519,0.99604,26009.0,26008.0,0.28597757]
[1693565513224,0.99604,26009.0,26007.0,0.36594824]
[1693565513427,0.4153,26008.0,26007.0,0.36594824]
[1693565513628,0.992224,26008.0,26007.0,0.36594824]
[1693565513826,1.150124,26008.0,26007.0,0.36594824]
[1693565515431,1.166124,26008.0,26007.0,0.36594824]
[1693565515630,1.166124,26008.0,26007.0,0.22171224]
[1693565516826,1.166124,26008.0,26007.0,0.07747624]
[1693565517028,1.184124,26008.0,26007.0,0.07747624]
[1693565517226,1.184124,26008.0,26007.0,0.00057671]
[1693565517438,1.184124,26008.0,26007.0,0.07749667]
[1693565517729,1.204124,26008.0,26007.0,0.07749667]
[1693565520342,1.204124,26008.0,26007.0,0.07749824]
[1693565520537,1.184124,26008.0,26007.0,0.07749824]
[1693565523042,1.184124,26008.0,26007.0,0.23249824]
[1693565523337,1.21539303,26008.0,26007.0,0.23249824]
[1693565525238,1.21539303,26008.0,26007.0,0.15557671]
[1693565528842,1.21539303,26008.0,26007.0,0.29981371]
[1693565529542,1.21539303,26008.0,26007.0,0.15557671]
[1693565530741,1.21539303,26008.0,26007.0,0.29981371]
[1693565532339,1.21539303,26008.0,26007.0,0.37673524]
[1693565533239,1.21539303,26008.0,26007.0,0.29981371]
[1693565537044,1.21539303,26008.0,26007.0,0.71511371]
[1693565538247,1.21539303,26008.0,26007.0,0.57087671]
[1693565538845,1.21539303,26008.0,26007.0,0.71511371]
[1693565542748,1.21539303,26008.0,26007.0,0.57087671]
[1693565546156,1.21539303,26008.0,26007.0,0.55184659]
[1693565553964,1.23539303,26008.0,26007.0,0.55184659]
[1693565555463,1.21739303,26008.0,26007.0,0.55184659]
[1693565555664,1.25339303,26008.0,26007.0,0.55184659]
[1693565567076,1.25339303,26008.0,26007.0,0.13654659]
[1693565582784,1.10916203,26008.0,26007.0,0.13654659]
[1693565583083,0.10326903,26008.0,26007.0,1.20347166]
[1693565583480,0.10326903,26008.0,26007.0,1.33693476]
[1693565584483,0.10326903,26008.0,26007.0,1.26002004]
[1693565584693,0.072,26008.0,26007.0,1.26002004]
[1693565585392,0.072,26008.0,26007.0,1.41384949]
[1693565585784,0.072,26008.0,26007.0,1.26002004]
[1693565590292,0.072,26008.0,26007.0,1.3752783]
[1693565590691,0.072,26008.0,26007.0,1.26002004]
[1693565591194,0.072,26008.0,26007.0,1.37527647]
[1693565592688,0.072,26008.0,26007.0,1.35527647]
[1693565592889,0.072,26008.0,26007.0,1.37527647]
[1693565600496,0.072,26008.0,26007.0,1.33681189]
[1693565600794,0.072,26008.0,26007.0,1.37527647]
[1693565601792,0.068,26008.0,26007.0,1.33680865]
[1693565601986,0.032,26008.0,26007.0,1.31680865]
[1693565602187,0.048,26008.0,26007.0,1.33680865]
[1693565602799,0.048,26008.0,26007.0,1.31680865]
[1693565603800,0.016,26008.0,26007.0,1.31680865]
[1693565603998,0.021,26008.0,26007.0,1.31780865]
[1693565604201,0.008,26008.0,26007.0,1.31880865]
[1693565607504,0.008,26008.0,26007.0,1.35727647]
[1693565613105,0.008,26008.0,26007.0,1.24202004]
[1693565614105,0.008,26008.0,26007.0,1.35719608]
[1693565614306,0.008,26008.0,26007.0,1.24202004]
[1693565615713,0.008,26008.0,26007.0,1.35720435]
[1693565622613,0.008,26008.0,26007.0,1.39584949]
[1693565623309,0.008,26008.0,26007.0,1.65035032]
[1693565627914,0.008,26008.0,26007.0,1.49652087]
[1693565629906,0.008,26008.0,26007.0,1.68880769]
[1693565630716,0.008,26008.0,26007.0,1.65032448]
[1693565633617,0.1593,26008.0,26007.0,1.65032448]
[1693565636910,0.00384,26009.0,26007.0,1.65032448]
[1693565636911,0.6147874,26011.0,26007.0,1.49652087]
[1693565637111,0.00385,26009.0,26008.0,0.26504278]
[1693565637412,0.00385,26009.0,26008.0,1.14602133]
[1693565637715,0.00385,26009.0,26008.0,1.35794027]
[1693565638305,0.00385,26009.0,26008.0,1.35894027]
[1693565638509,0.01985,26009.0,26008.0,1.35894027]
[1693565639718,0.03685,26009.0,26008.0,1.35994027]
[1693565645732,0.03685,26009.0,26008.0,1.51376415]
[1693565646425,0.03685,26009.0,26008.0,1.35994027]
[1693565649034,0.03685,26009.0,26008.0,1.39072833]
[1693565652940,0.03685,26009.0,26008.0,1.54454906]
[1693565659845,0.03685,26009.0,26008.0,1.39072833]
[1693565660343,0.03685,26009.0,26008.0,1.58301515]
[1693565660531,0.03685,26009.0,26008.0,1.39072833]
[1693565661538,0.03685,26009.0,26008.0,1.58301515]
[1693565665444,0.03685,26009.0,26008.0,1.39072833]
[1693565665744,0.03685,26009.0,26008.0,1.58301515]
[1693565667045,0.03685,26009.0,26008.0,1.39072833]
[1693565668149,0.03685,26009.0,26008.0,1.51376267]
[1693565668946,0.03685,26009.0,26008.0,1.51375872]
[1693565669746,0.03685,26009.0,26008.0,1.25927585]
[1693565674555,0.03685,26009.0,26008.0,1.51376164]
[1693565674957,0.03685,26009.0,26008.0,1.55222606]
[1693565684165,0.03685,26009.0,26008.0,1.35993924]
[1693565684769,0.03685,26009.0,26008.0,1.55222606]
[1693565687175,0.03685,26009.0,26008.0,1.55224423]
[1693565687967,0.03685,26009.0,26008.0,1.58347509]
[1693565690168,0.03685,26009.0,26008.0,1.39116512]
[1693565694577,0.03685,26009.0,26008.0,1.39116153]
[1693565696866,0.03685,26009.0,26008.0,1.54499327]
[1693565697073,0.03685,26009.0,26008.0,1.39116153]
[1693565698076,0.03685,26009.0,26008.0,1.58345653]
[1693565705081,0.03685,26009.0,26008.0,1.39116153]
[1693565710290,0.03685,26009.0,26008.0,1.3930253]
[1693565713187,0.03685,26009.0,26008.0,1.5853203]
[1693565715594,0.03685,26009.0,26008.0,1.55408944]
[1693565715909,0.325296,26009.0,26008.0,1.44285199]
[1693565717197,0.325296,26009.0,26008.0,1.25055699]
[1693565717696,0.325296,26009.0,26008.0,1.30524606]
[1693565719501,0.325296,26009.0,26008.0,1.05076884]
[1693565719697,0.325296,26009.0,26008.0,1.16103325]
[1693565720294,0.325296,26009.0,26008.0,1.0603812]
[1693565721595,0.325296,26009.0,26008.0,1.11692958]
[1693565723801,0.325296,26009.0,26008.0,0.96308822]
[1693565724209,0.325296,26009.0,26008.0,1.11692958]
[1693565725311,0.325296,26009.0,26008.0,1.37142197]
[1693565726912,0.740596,26009.0,26008.0,1.37142197]
[1693565728308,0.740596,26009.0,26008.0,1.21758061]
[1693565733426,0.740596,26009.0,26008.0,1.16103223]
[1693565736929,0.325296,26009.0,26008.0,1.16103223]
[1693565739432,0.325296,26009.0,26008.0,1.31484664]
[1693565739629,0.325296,26009.0,26008.0,1.26015757]
[1693565739823,0.325296,26009.0,26008.0,1.31484664]
[1693565740028,0.325296,26009.0,26008.0,1.37139502]
[1693565741130,0.325296,26009.0,26008.0,1.21758061]
[1693565741831,0.325296,26009.0,26008.0,1.37139522]
[1693565742035,0.325296,26009.0,26008.0,1.10634316]
[1693565742233,0.325296,26009.0,26008.0,1.16103223]
[1693565742534,0.325296,26009.0,26008.0,1.31484665]
[1693565744028,0.325296,26009.0,26008.0,1.45907565]
[1693565747036,0.740596,26009.0,26008.0,1.45907565]
[1693565748138,0.740596,26009.0,26008.0,1.51562403]
[1693565749133,0.033,26009.0,26008.0,1.36180961]
[1693565749837,0.0310414,26011.0,26008.0,1.55411197]
[1693565750036,0.02,26011.0,26010.0,0.4153]
[1693565750239,0.02,26011.0,26010.0,1.10340945]
[1693565750432,0.02,26011.0,26010.0,1.51355822]
[1693565750637,0.15927671,26012.0,26010.0,1.51355822]
[1693565750837,0.17927671,26012.0,26011.0,0.64189254]
[1693565751038,0.2106718,26012.0,26011.0,1.38394454]
[1693565751337,0.2106718,26012.0,26011.0,1.38580831]
[1693565751645,0.2106718,26012.0,26011.0,1.27045322]
[1693565751841,0.2466718,26012.0,26011.0,1.27045322]
[1693565752148,0.0879718,26012.0,26011.0,1.27045322]
[1693565752437,0.0879718,26012.0,26011.0,1.67872589]
[1693565752845,0.0879718,26012.0,26011.0,1.4242622]
[1693565753536,0.0519718,26012.0,26011.0,1.27045322]
[1693565753742,0.2321788,26012.0,26011.0,1.27245322]
[1693565754237,0.2681788,26012.0,26011.0,1.27445322]
[1693565758048,0.4123858,26012.0,26011.0,1.27445322]
[1693565758741,0.5565928,26012.0,26011.0,1.13432795]
[1693565759045,0.5365928,26012.0,26011.0,1.13432795]
[1693565760347,0.5365928,26012.0,26011.0,0.99011495]
[1693565760550,0.5365928,26012.0,26011.0,0.12118895]
[1693565760551,1.1160998,26012.0,26011.0,0.12118895]
[1693565761050,1.1160998,26012.0,26011.0,0.08275127]
[1693565761944,1.1160998,26012.0,26011.0,0.22696427]
[1693565762342,1.1160998,26012.0,26011.0,0.26540195]
[1693565768156,1.0960998,26012.0,26011.0,0.32009102]
[1693565768459,1.0960998,26012.0,26011.0,0.26540195]
[1693565768759,1.0960998,26012.0,26011.0,0.3766394]
[1693565769457,1.0960998,26012.0,26011.0,0.32195033]
[1693565770358,1.0960998,26012.0,26011.0,0.3766394]
[1693565770661,1.0960998,26012.0,26011.0,0.32195033]
[1693565772158,1.0960998,26012.0,26011.0,0.26540195]
[1693565773959,1.0960998,26012.0,26011.0,0.26540985]
[1693565776059,1.0960998,26012.0,26011.0,0.32009892]
[1693565776358,1.0960998,26012.0,26011.0,0.26540985]
[1693565776758,1.0960998,26012.0,26011.0,0.32009892]
[1693565776959,1.0960998,26012.0,26011.0,0.26540985]
[1693565777362,1.0960998,26012.0,26011.0,0.32009892]
[1693565777859,1.0960998,26012.0,26011.0,0.26540985]
[1693565779864,0.9518928,26012.0,26011.0,0.40962285]
[1693565780258,0.9518928,26012.0,26011.0,0.46431192]
[1693565780758,0.9518928,26012.0,26011.0,0.5208603]
[1693565781758,0.9518928,26012.0,26011.0,0.46431192]
[1693565782863,0.9518928,26012.0,26011.0,0.40962285]
[1693565784061,0.9518928,26012.0,26011.0,0.46431192]
[1693565787570,0.9518928,26012.0,26011.0,0.34897884]
[1693565787866,0.9518928,26012.0,26011.0,0.29428977]
[1693565788267,1.1120928,26012.0,26011.0,0.34897884]
[1693565788468,1.1120928,26012.0,26011.0,0.29428977]
[1693565789265,1.1120928,26012.0,26011.0,0.49319184]
[1693565789470,1.1120928,26012.0,26011.0,0.54974022]
[1693565789968,1.1120928,26012.0,26011.0,0.70353992]
[1693565790564,1.1120928,26012.0,26011.0,0.95801277]
[1693565791656,1.1120928,26012.0,26011.0,0.54974022]
[1693565794070,1.1120928,26012.0,26011.0,0.49319184]
[1693565794657,1.1120928,26012.0,26011.0,0.64699154]
[1693565795774,1.1120928,26012.0,26011.0,0.49319184]
[1693565796473,1.1120928,26012.0,26011.0,0.60855239]
[1693565796972,0.6967928,26012.0,26011.0,1.02385239]
[1693565797367,0.6967928,26012.0,26011.0,0.90849184]
[1693565798875,1.2562998,26012.0,26011.0,0.26544405]
[1693565801981,1.2562998,26012.0,26011.0,0.12123105]
[1693565802792,1.2562998,26012.0,26011.0,0.00586377]
[1693565804896,1.2762998,26012.0,26011.0,0.12124727]
[1693565810892,1.2762998,26012.0,26011.0,0.08278425]
[1693565813083,1.2562998,26012.0,26011.0,0.08278425]
[1693565818301,1.2562998,26012.0,26011.0,0.00586377]
[1693565818602,1.2562998,26012.0,26011.0,0.12124727]
[1693565832415,1.2562998,26012.0,26011.0,0.08277503]
[1693565837421,1.2562998,26012.0,26011.0,0.00586377]
[1693565837624,1.2562998,26012.0,26011.0,0.08277944]
[1693565837922,1.2562998,26012.0,26011.0,0.00586377]
[1693565838221,1.2562998,26012.0,26011.0,0.08277969]
[1693565838417,1.2562998,26012.0,26011.0,0.00586377]
[1693565838625,1.2562998,26012.0,26011.0,0.08278043]
[1693565839222,1.2562998,26012.0,26011.0,0.00586377]
[1693565840524,1.2562998,26012.0,26011.0,0.12124727]
[1693565841526,1.2562998,26012.0,26011.0,0.27324727]
[1693565854221,1.2562998,26012.0,26011.0,0.01000037]
[1693565854222,1.2762998,26012.0,26011.0,0.01000037]
[1693565854428,0.4153,26010.0,26009.0,0.1537997]
[1693565854633,1.411312,26010.0,26009.0,0.1537997]
[1693565854835,0.00384,26009.0,26008.0,0.1537997]
[1693565855027,1.158936,26009.0,26008.0,0.1537997]
[1693565855431,1.158936,26009.0,26007.0,0.40831062]
[1693565855631,0.4153,26008.0,26007.0,0.42831062]
[1693565855834,0.992216,26008.0,26007.0,0.42831062]
[1693565856637,0.992216,26008.0,26007.0,0.44431062]
[1693565857240,0.994216,26008.0,26007.0,0.44431062]
[1693565857736,0.994216,26008.0,26007.0,0.036]
[1693565858036,0.994216,26008.0,26007.0,0.016]
[1693565858743,1.006216,26008.0,26007.0,0.017]
[1693565859539,1.017216,26008.0,26007.0,0.004]
[1693565860243,1.018216,26008.0,26007.0,0.002]
[1693565860539,1.043216,26008.0,26007.0,0.004]
[1693565864145,1.063216,26008.0,26007.0,0.004]
[1693565864344,1.043216,26008.0,26007.0,0.004]
[1693565865944,1.063216,26008.0,26007.0,0.004]
[1693565866142,1.043216,26008.0,26007.0,0.004]
[1693565866742,1.07462422,26008.0,26007.0,0.004]
[1693565866939,1.07462422,26008.0,26007.0,0.148235]
[1693565869647,1.07462422,26008.0,26007.0,0.29247]
[1693565896780,1.07462422,26008.0,26007.0,0.4462697]
[1693565897879,1.07462422,26008.0,26007.0,0.70078853]
[1693565898581,1.07462422,26008.0,26007.0,0.54698883]
[1693565898777,1.07462422,26008.0,26007.0,0.29247]
[1693565898987,1.07462422,26008.0,26007.0,0.436705]
[1693565899687,1.07462422,26008.0,26007.0,0.49139407]
[1693565899890,1.07462422,26008.0,26007.0,0.5905047]
[1693565900389,1.07462422,26008.0,26007.0,0.64519377]
[1693565900990,1.07462422,26008.0,26007.0,0.49139407]
[1693565901890,1.07462422,26008.0,26007.0,0.436705]
[1693565909489,1.07462422,26008.0,26007.0,0.29247]
[1693565910083,1.07462422,26008.0,26007.0,0.148235]
[1693565910388,1.07462422,26008.0,26007.0,0.15351203]
[1693565914188,1.07462422,26008.0,26007.0,0.29774703]
[1693565914388,1.07462422,26008.0,26007.0,0.46781871]
[1693565914592,1.07462422,26008.0,26007.0,0.41312964]
[1693565914790,1.07462422,26008.0,26007.0,0.26889464]
[1693565914983,1.07462422,26008.0,26007.0,0.12465964]
[1693565915183,1.07462422,26008.0,26007.0,0.26889464]
[1693565916083,1.04862422,26008.0,26007.0,0.26689464]
[1693565916283,1.08462422,26008.0,26007.0,0.12265964]
[1693565916588,1.09462422,26008.0,26007.0,0.12065964]
[1693565919894,1.09562422,26008.0,26007.0,0.12065964]
[1693565920197,1.09562422,26008.0,26007.0,0.00527703]
[1693565922295,1.05962422,26008.0,26007.0,0.00527703]